bitfinex/quotes_BTCUSD_20240729
["timestamp","ask_amount","ask_price","bid_price","bid_amount"]
[1722285101410,0.001,67354.0,67353.0,1.47187953]
[1722285101609,0.001,67354.0,67353.0,1.54747953]
[1722285103038,0.02428684,67354.0,67353.0,1.54747953]
[1722285103495,0.02428684,67354.0,67353.0,1.43786258]
[1722285103795,0.02428684,67354.0,67353.0,1.54770297]
[1722285104156,0.001,67354.0,67353.0,1.54770297]
[1722285104358,0.001,67354.0,67353.0,1.52570297]
[1722285104763,0.0645,67354.0,67353.0,0.44927697]
[1722285104960,0.0645,67354.0,67353.0,0.41741078]
[1722285105260,0.0645,67354.0,67353.0,0.71435278]
[1722285106179,0.0645,67354.0,67353.0,0.41741078]
[1722285106792,0.0645,67354.0,67353.0,0.12584039]
[1722285107219,0.0645,67354.0,67353.0,0.12597052]
[1722285107451,0.08778982,67354.0,67353.0,0.12597052]
[1722285107780,0.0645,67354.0,67353.0,0.12597052]
[1722285108427,0.06534,67354.0,67353.0,0.12597052]
[1722285110145,0.06534,67354.0,67353.0,0.12646756]
[1722285110896,0.08862836,67354.0,67353.0,0.27493856]
[1722285111334,0.08862836,67354.0,67353.0,0.12646756]
[1722285112198,0.06534,67354.0,67353.0,0.12649118]
[1722285113426,0.06534,67354.0,67353.0,0.12744679]
[1722285114748,0.06534,67354.0,67353.0,0.27591779]
[1722285114924,0.06534,67354.0,67353.0,0.12744679]
[1722285115684,0.0886281,67354.0,67353.0,0.12744679]
[1722285116007,0.06534,67354.0,67353.0,0.12744679]
[1722285116613,0.06534,67354.0,67353.0,0.12730706]
[1722285119194,0.0886281,67354.0,67353.0,0.21380706]
[1722285119446,0.06534,67354.0,67353.0,0.21380706]
[1722285120023,0.06534,67354.0,67353.0,0.21419254]
[1722285122579,0.08862817,67354.0,67353.0,0.36266354]
[1722285123330,0.08862817,67354.0,67353.0,0.36267312]
[1722285126450,0.08862817,67354.0,67353.0,0.250971]
[1722285126655,0.08862817,67354.0,67353.0,0.36277716]
[1722285127178,0.08862817,67354.0,67353.0,0.65971916]
[1722285127757,0.08862817,67354.0,67353.0,0.36277716]
[1722285129359,0.08862817,67354.0,67353.0,0.65971916]
[1722285129902,0.08862817,67354.0,67353.0,0.547913]
[1722285130094,0.08862817,67354.0,67353.0,0.65969818]
[1722285131067,0.02512817,67354.0,67353.0,0.65969818]
[1722285131486,0.00184,67354.0,67353.0,0.65969818]
[1722285132263,0.05614,67357.0,67356.0,0.0865]
[1722285132491,0.05614,67357.0,67356.0,0.19828518]
[1722285133081,0.05614,67357.0,67356.0,0.18586622]
[1722285134007,0.05714,67357.0,67356.0,0.19586622]
[1722285134922,0.0804281,67357.0,67356.0,0.19586622]
[1722285136487,0.0804281,67357.0,67356.0,0.19601267]
[1722285139740,0.0804281,67357.0,67356.0,0.19583217]
[1722285140641,0.05714,67357.0,67356.0,0.19583217]
[1722285141124,0.05714,67357.0,67356.0,0.19674517]
[1722285142032,0.0638338,67357.0,67356.0,0.19674517]
[1722285142444,0.05714,67357.0,67356.0,0.11024517]
[1722285142667,0.05714,67357.0,67356.0,0.19674517]
[1722285142873,0.06383588,67357.0,67356.0,0.19674517]
[1722285143063,0.05714,67357.0,67356.0,0.19674517]
[1722285143267,0.06383588,67357.0,67356.0,0.19674517]
[1722285143469,0.05714,67357.0,67356.0,0.19674517]
[1722285146202,0.05714,67357.0,67356.0,0.097413]
[1722285146405,0.05714,67357.0,67356.0,0.19714685]
[1722285148038,0.08042828,67357.0,67356.0,0.19714685]
[1722285148354,0.05714,67357.0,67356.0,0.19714685]
[1722285149549,0.05714,67357.0,67356.0,0.20080088]
[1722285151681,0.08042828,67357.0,67356.0,0.20080088]
[1722285152295,0.02428828,67357.0,67356.0,0.78929327]
[1722285152719,0.02428828,67357.0,67356.0,0.68590539]
[1722285152909,0.001,67357.0,67356.0,0.7886301]
[1722285156028,0.001,67357.0,67356.0,0.68590539]
[1722285156305,0.0242876,67357.0,67356.0,0.78862242]
[1722285159472,0.0242876,67357.0,67356.0,0.78887468]
[1722285159747,0.0242876,67357.0,67356.0,1.08580368]
[1722285159969,0.1242876,67357.0,67356.0,1.08580368]
[1722285161099,0.1242876,67357.0,67356.0,1.59361268]
[1722285161215,0.1242876,67357.0,67356.0,2.57430515]
[1722285161672,0.07759479,67357.0,67356.0,2.57430515]
[1722285161866,0.44444115,67374.0,67373.0,0.445281]
[1722285162066,0.00837,67376.0,67375.0,0.445269]
[1722285162223,0.00837,67376.0,67375.0,0.98818368]
[1722285162681,0.00837,67376.0,67375.0,0.98830531]
[1722285165015,0.03165142,67376.0,67375.0,0.98830531]
[1722285166002,0.17305142,67376.0,67375.0,0.14309939]
[1722285166115,0.17405142,67376.0,67375.0,0.29852239]
[1722285166319,0.15077,67376.0,67375.0,0.29852239]
[1722285166542,0.15077,67376.0,67375.0,0.31252239]
[1722285166747,0.15077,67376.0,67375.0,0.29852239]
[1722285166948,0.14977,67376.0,67375.0,0.29152239]
[1722285167165,0.15077,67376.0,67375.0,0.31052239]
[1722285168041,0.15077,67376.0,67375.0,0.29652239]
[1722285168672,0.14977,67376.0,67375.0,0.29152239]
[1722285168880,0.15077,67376.0,67375.0,0.29652239]
[1722285169104,0.15077,67376.0,67375.0,0.30532068]
[1722285169508,0.15077,67376.0,67375.0,0.17089768]
[1722285169708,0.15077,67376.0,67375.0,0.02779829]
[1722285173171,0.17405225,67376.0,67375.0,0.02779829]
[1722285173971,0.15077,67376.0,67375.0,0.02779829]
[1722285180512,0.17405245,67376.0,67375.0,0.019]
[1722285181155,0.15077,67376.0,67375.0,0.019]
[1722285184555,0.17405245,67376.0,67375.0,0.019]
[1722285185782,0.15077,67376.0,67375.0,0.019]
[1722285188499,0.00937,67376.0,67375.0,0.45894539]
[1722285188729,0.00937,67376.0,67375.0,1.00761576]
[1722285188957,0.00937,67376.0,67375.0,0.41391703]
[1722285189178,0.03265233,67376.0,67375.0,0.41391703]
[1722285189420,0.17295233,67376.0,67375.0,0.41391703]
[1722285189862,0.17295233,67376.0,67375.0,0.71076303]
[1722285190800,0.09695233,67376.0,67375.0,0.71076303]
[1722285191690,0.03265233,67376.0,67375.0,0.71076303]
[1722285192183,0.03265233,67376.0,67375.0,0.60736839]
[1722285192384,0.03265233,67376.0,67375.0,0.71074087]
[1722285194199,0.03265233,67376.0,67375.0,0.41389487]
[1722285194404,0.03265233,67376.0,67375.0,0.41390779]
[1722285194810,0.03265233,67376.0,67375.0,0.71075379]
[1722285195419,0.03265233,67376.0,67375.0,0.71095803]
[1722285196226,0.02715233,67376.0,67375.0,0.71095803]
[1722285198750,0.02715233,67376.0,67375.0,0.71079679]
[1722285199976,0.02715233,67376.0,67375.0,1.00764279]
[1722285200203,0.02715233,67376.0,67375.0,1.08414279]
[1722285200604,0.02715233,67376.0,67375.0,1.49098879]
[1722285200804,0.02715233,67376.0,67375.0,1.53398879]
[1722285201153,0.02715233,67376.0,67375.0,1.66679013]
[1722285201601,0.02715233,67376.0,67375.0,1.71325767]
[1722285201794,0.02715233,67376.0,67375.0,1.58045633]
[1722285202004,0.02715233,67376.0,67375.0,1.536419]
[1722285202200,0.02715233,67376.0,67375.0,1.602419]
[1722285202343,0.02715233,67376.0,67375.0,1.60584702]
[1722285202537,0.02715233,67376.0,67375.0,1.65032195]
[1722285202964,0.02715233,67376.0,67375.0,1.60584702]
[1722285203165,0.02715233,67376.0,67375.0,1.70584702]
[1722285203396,0.02715233,67376.0,67375.0,1.75032569]
[1722285203856,0.02715233,67376.0,67375.0,1.79034702]
[1722285204374,0.02715233,67376.0,67375.0,1.79234702]
[1722285204583,0.02715233,67376.0,67375.0,1.83682569]
[1722285205406,0.02715233,67376.0,67375.0,1.83715334]
[1722285205834,0.02715233,67376.0,67375.0,1.79266096]
[1722285206007,0.02715233,67376.0,67375.0,1.68416096]
[1722285206210,0.02715233,67376.0,67375.0,1.79066096]
[1722285206695,0.02715233,67376.0,67375.0,2.18666162]
[1722285206871,0.02715233,67376.0,67375.0,2.18866162]
[1722285208034,0.02715233,67376.0,67375.0,2.18957462]
[1722285208605,0.02715233,67376.0,67375.0,2.190065]
[1722285208804,0.02715233,67376.0,67375.0,1.86080293]
[1722285209707,0.02715233,67376.0,67375.0,1.21319062]
[1722285209864,0.02715233,67376.0,67375.0,0.90284462]
[1722285210066,0.02715233,67376.0,67375.0,1.19969062]
[1722285210417,0.02715233,67376.0,67375.0,0.60599862]
[1722285210629,0.02715233,67376.0,67375.0,0.90284462]
[1722285211170,0.02715233,67376.0,67375.0,1.19969062]
[1722285211669,0.02715233,67376.0,67375.0,1.09162739]
[1722285211913,0.02715233,67376.0,67375.0,1.19973686]
[1722285212825,0.02715233,67376.0,67375.0,0.90289086]
[1722285215069,0.02715233,67376.0,67375.0,0.90280973]
[1722285216581,0.02715233,67376.0,67375.0,1.19965573]
[1722285217134,0.02715233,67376.0,67375.0,0.90280973]
[1722285217784,0.17395233,67376.0,67375.0,0.019913]
[1722285218510,0.32237233,67376.0,67375.0,0.019913]
[1722285218734,0.17395233,67376.0,67375.0,0.019913]
[1722285218895,0.17450653,67376.0,67375.0,0.014913]
[1722285219264,0.18295233,67376.0,67375.0,0.015913]
[1722285219904,0.18450653,67376.0,67375.0,0.015913]
[1722285220548,0.17450653,67376.0,67375.0,0.014913]
[1722285220970,0.18195233,67376.0,67375.0,0.015913]
[1722285221099,0.18195233,67376.0,67375.0,0.001913]
[1722285222434,0.18195233,67376.0,67375.0,0.004913]
[1722285222599,0.18350653,67376.0,67375.0,0.004913]
[1722285223054,0.33192653,67376.0,67375.0,0.001913]
[1722285223280,0.33037233,67376.0,67375.0,0.001913]
[1722285223496,0.62721333,67376.0,67375.0,0.001913]
[1722285224223,0.62876753,67376.0,67375.0,0.001913]
[1722285224663,0.69023204,67376.0,67375.0,0.001913]
[1722285224869,0.98666346,67376.0,67375.0,0.001913]
[1722285225069,0.92560853,67376.0,67375.0,0.001913]
[1722285225243,0.98636099,67376.0,67375.0,0.001913]
[1722285227009,0.92560853,67376.0,67375.0,0.001913]
[1722285229459,1.66238992,67376.0,67375.0,0.001913]
[1722285229625,2.01995972,67376.0,67375.0,0.001913]
[1722285229771,1.90777099,67376.0,67375.0,0.001913]
[1722285229971,1.90464828,67376.0,67375.0,0.001913]
[1722285230210,1.90620248,67376.0,67375.0,0.001913]
[1722285230540,2.00620106,67376.0,67375.0,0.000913]
[1722285230728,2.00620106,67376.0,67375.0,0.001913]
[1722285230729,2.02020106,67376.0,67375.0,0.001913]
[1722285231131,2.02020106,67376.0,67375.0,0.000913]
[1722285231132,1.90964828,67376.0,67375.0,0.000913]
[1722285231372,1.89718176,67376.0,67375.0,0.000913]
[1722285231497,2.02169669,67376.0,67375.0,0.001913]
[1722285231705,1.99800081,67376.0,67375.0,0.001913]
[1722285231964,1.99955413,67376.0,67375.0,0.001913]
[1722285232517,1.8347131,67376.0,67375.0,0.001913]
[1722285232807,1.99772382,67376.0,67375.0,0.001913]
[1722285233009,1.99927802,67376.0,67375.0,0.001913]
[1722285233640,1.91094532,67376.0,67375.0,0.001913]
[1722285234784,1.96715523,67376.0,67375.0,0.001913]
[1722285235287,2.05210103,67376.0,67375.0,0.001913]
[1722285235499,1.98589112,67376.0,67375.0,0.001913]
[1722285236745,1.98589112,67376.0,67375.0,0.002913]
[1722285236746,1.98789112,67376.0,67375.0,0.002913]
[1722285237543,1.2314769,67376.0,67375.0,0.002913]
[1722285237738,1.08837751,67376.0,67375.0,0.002913]
[1722285237958,1.06509518,67376.0,67375.0,0.002913]
[1722285238275,1.45086454,67376.0,67375.0,0.002913]
[1722285239098,1.44886454,67376.0,67375.0,0.001913]
[1722285239812,1.45086454,67376.0,67375.0,0.002913]
[1722285240391,1.43686454,67376.0,67375.0,0.001913]
[1722285240597,1.45086454,67376.0,67375.0,0.001913]
[1722285240801,1.15402354,67376.0,67375.0,0.001913]
[1722285242219,1.15533768,67376.0,67375.0,0.001913]
[1722285242765,1.17862463,67376.0,67375.0,0.001913]
[1722285242976,1.17731049,67376.0,67375.0,0.001913]
[1722285243790,0.39712849,67376.0,67375.0,0.001913]
[1722285244028,0.18895695,67376.0,67375.0,0.001913]
[1722285244143,0.16567,67376.0,67375.0,0.001913]
[1722285244765,0.00487,67376.0,67375.0,0.088413]
[1722285244963,0.00487,67376.0,67375.0,0.001913]
[1722285245167,0.00287,67376.0,67375.0,0.000913]
[1722285245607,0.00287,67376.0,67375.0,0.001913]
[1722285245785,0.00287,67376.0,67375.0,0.000913]
[1722285245989,0.15147,67376.0,67375.0,0.000913]
[1722285246163,0.15147,67376.0,67375.0,0.005913]
[1722285246164,0.596731,67376.0,67375.0,0.005913]
[1722285246741,0.604731,67376.0,67375.0,0.005913]
[1722285246906,0.22459,67376.0,67375.0,0.000913]
[1722285247334,0.24787427,67376.0,67375.0,0.000913]
[1722285247733,0.22459,67376.0,67375.0,0.000913]
[1722285248159,0.01087,67376.0,67375.0,0.000913]
[1722285248464,0.00287,67376.0,67375.0,0.000913]
[1722285248760,0.01187,67376.0,67375.0,0.000913]
[1722285248960,0.01187,67376.0,67375.0,0.064213]
[1722285249214,0.00287,67376.0,67375.0,0.064213]
[1722285249416,0.00287,67376.0,67375.0,0.065213]
[1722285249620,0.01087,67376.0,67375.0,0.065213]
[1722285249924,0.01087,67376.0,67375.0,0.002913]
[1722285250163,0.00287,67376.0,67375.0,0.000913]
[1722285250381,0.06917,67376.0,67375.0,0.000913]
[1722285250853,0.21759,67376.0,67375.0,0.000913]
[1722285251065,0.24087413,67376.0,67375.0,0.000913]
[1722285251272,0.06917,67376.0,67375.0,0.000913]
[1722285251697,0.06517,67376.0,67375.0,0.000913]
[1722285251901,0.06917,67376.0,67375.0,0.000913]
[1722285252118,0.06917,67376.0,67375.0,0.004913]
[1722285252416,0.00774191,67376.0,67375.0,0.004913]
[1722285252641,0.00287,67376.0,67375.0,0.004913]
[1722285253061,0.00787,67376.0,67375.0,0.004913]
[1722285253278,0.00787,67376.0,67375.0,0.000913]
[1722285253489,0.00287,67376.0,67375.0,0.004913]
[1722285253712,0.00587,67376.0,67375.0,0.000913]
[1722285254091,0.00587,67376.0,67375.0,0.007913]
[1722285254633,0.02915311,67376.0,67375.0,0.007913]
[1722285255861,0.00587,67376.0,67375.0,0.007913]
[1722285257453,0.00587,67376.0,67375.0,0.381659]
[1722285257798,0.00587,67376.0,67375.0,0.593682]
[1722285258202,0.00587,67376.0,67375.0,0.296836]
[1722285259001,0.02915211,67376.0,67375.0,0.73678139]
[1722285259412,0.00587,67376.0,67375.0,0.73678139]
[1722285259790,0.00129562,67381.0,67380.0,0.0865]
[1722285260868,0.00129562,67381.0,67377.0,0.0865]
[1722285261082,0.00929562,67381.0,67375.0,0.000913]
[1722285261295,0.0015542,67380.0,67377.0,0.0865]
[1722285261479,0.00929562,67381.0,67377.0,0.0865]
[1722285262236,0.00129562,67381.0,67377.0,0.0865]
[1722285262442,0.00235364,67381.0,67377.0,0.0865]
[1722285262644,0.00235364,67381.0,67380.0,0.0865]
[1722285262810,0.02457789,67381.0,67380.0,0.0865]
[1722285263255,0.02573378,67381.0,67377.0,0.002]
[1722285263452,0.02573378,67381.0,67377.0,0.0865]
[1722285263652,0.02573378,67381.0,67375.0,0.000913]
[1722285263865,0.02573378,67381.0,67377.0,0.001]
[1722285264039,0.03273378,67381.0,67377.0,0.002]
[1722285264221,0.03273378,67381.0,67380.0,0.001]
[1722285264630,0.03273378,67381.0,67377.0,0.001]
[1722285264828,0.02573378,67381.0,67375.0,0.001913]
[1722285265141,0.02573378,67381.0,67375.0,0.002913]
[1722285265142,0.03273378,67381.0,67375.0,0.002913]
[1722285266050,0.03273378,67381.0,67375.0,0.001913]
[1722285266488,0.03273378,67381.0,67380.0,0.001]
[1722285267557,0.03157789,67381.0,67380.0,0.001]
[1722285267745,0.03304426,67381.0,67375.0,0.001913]
[1722285268182,0.03157789,67381.0,67380.0,0.001]
[1722285268343,0.03259774,67381.0,67380.0,0.001]
[1722285268555,0.00829562,67381.0,67380.0,0.001]
[1722285268774,0.00951533,67381.0,67380.0,0.001]
[1722285268971,0.00251533,67381.0,67380.0,0.001]
[1722285269427,0.00829562,67381.0,67380.0,0.001]
[1722285269752,0.00950618,67381.0,67380.0,0.001]
[1722285270738,0.00829562,67381.0,67380.0,0.001]
[1722285270937,0.00935336,67381.0,67380.0,0.002]
[1722285271160,0.00829562,67381.0,67380.0,0.002]
[1722285271576,0.03299911,67381.0,67380.0,0.002]
[1722285271731,0.03157819,67381.0,67380.0,0.002]
[1722285271932,0.03271301,67381.0,67380.0,0.002]
[1722285272133,0.00943044,67381.0,67380.0,0.002]
[1722285272387,0.00932515,67381.0,67380.0,0.002]
[1722285272584,0.00829562,67381.0,67380.0,0.002]
[1722285272782,0.00919127,67381.0,67380.0,0.002]
[1722285272950,0.00829562,67381.0,67380.0,0.002]
[1722285273473,0.00970042,67381.0,67380.0,0.002]
[1722285273687,0.38900462,67381.0,67380.0,0.002]
[1722285273889,0.66001035,67381.0,67380.0,0.002]
[1722285274088,1.11882488,67381.0,67380.0,0.002]
[1722285274417,1.04332935,67381.0,67380.0,0.002]
[1722285274616,1.1188261,67381.0,67380.0,0.002]
[1722285276392,1.1257162,67381.0,67380.0,0.002]
[1722285276643,1.4225352,67381.0,67380.0,0.002]
[1722285276843,1.42277492,67381.0,67380.0,0.002]
[1722285277401,1.42372523,67381.0,67380.0,0.002]
[1722285277576,1.42277492,67381.0,67380.0,0.002]
[1722285277779,0.887902,67376.0,67375.0,0.000913]
[1722285277932,0.95543118,67376.0,67375.0,0.000913]
[1722285278294,1.25227218,67376.0,67375.0,0.000913]
[1722285278457,1.3275958,67376.0,67375.0,0.000913]
[1722285279888,1.3295958,67376.0,67375.0,0.000913]
[1722285280062,1.35288201,67376.0,67375.0,0.000913]
[1722285281066,1.35406758,67376.0,67375.0,0.000913]
[1722285281294,1.3295958,67376.0,67375.0,0.000913]
[1722285281861,1.33048945,67376.0,67375.0,0.000913]
[1722285282066,1.3295958,67376.0,67375.0,0.000913]
[1722285282286,1.25427218,67376.0,67375.0,0.000913]
[1722285282491,1.34024243,67376.0,67375.0,0.000913]
[1722285282833,1.38454628,67376.0,67375.0,0.000913]
[1722285283235,1.38453923,67376.0,67375.0,0.000913]
[1722285283378,1.34023341,67376.0,67375.0,0.000913]
[1722285283575,1.40665023,67376.0,67375.0,0.000913]
[1722285283979,1.34023341,67376.0,67375.0,0.000913]
[1722285284184,0.96843118,67376.0,67375.0,0.000913]
[1722285284589,0.99316368,67376.0,67375.0,0.000913]
[1722285284869,0.96843118,67376.0,67375.0,0.000913]
[1722285285433,0.96974039,67376.0,67375.0,0.000913]
[1722285285629,0.96843118,67376.0,67375.0,0.000913]
[1722285286782,0.96946563,67376.0,67375.0,0.000913]
[1722285286983,0.96158873,67376.0,67375.0,0.000913]
[1722285287626,0.96262746,67376.0,67375.0,0.000913]
[1722285288100,1.28171577,67376.0,67375.0,0.000913]
[1722285288280,1.49128733,67376.0,67375.0,0.000913]
[1722285289662,1.42481516,67376.0,67375.0,0.000913]
[1722285289839,1.49128607,67376.0,67375.0,0.000913]
[1722285290287,1.49129425,67376.0,67375.0,0.000913]
[1722285291053,1.46800821,67376.0,67375.0,0.000913]
[1722285292362,1.40152912,67376.0,67375.0,0.000913]
[1722285293995,1.42481568,67376.0,67375.0,0.000913]
[1722285294357,1.10468812,67376.0,67375.0,0.000913]
[1722285294758,1.40152912,67376.0,67375.0,0.000913]
[1722285295710,1.46798953,67376.0,67375.0,0.000913]
[1722285296830,1.17114853,67376.0,67375.0,0.000913]
[1722285297030,1.10468812,67376.0,67375.0,0.000913]
[1722285297396,1.48802912,67376.0,67375.0,0.000913]
[1722285297596,1.21447446,67376.0,67375.0,0.000913]
[1722285297848,1.48802912,67376.0,67375.0,0.000913]
[1722285298598,1.56400684,67376.0,67375.0,0.000913]
[1722285298798,1.48802912,67376.0,67375.0,0.000913]
[1722285299338,1.56399477,67376.0,67375.0,0.000913]
[1722285299642,1.48802912,67376.0,67375.0,0.000913]
[1722285300390,1.19118812,67376.0,67375.0,0.000913]
[1722285300799,1.48802912,67376.0,67375.0,0.000913]
[1722285301241,1.51131568,67376.0,67375.0,0.000913]
[1722285301441,1.58726752,67376.0,67375.0,0.000913]
[1722285302469,1.29042652,67376.0,67375.0,0.000913]
[1722285303269,1.58726752,67376.0,67375.0,0.000913]
[1722285303793,1.29042652,67376.0,67375.0,0.000913]
[1722285304638,1.58726752,67376.0,67375.0,0.000913]
[1722285304841,1.58688388,67376.0,67375.0,0.000913]
[1722285305264,1.29004288,67376.0,67375.0,0.000913]
[1722285305666,1.58688388,67376.0,67375.0,0.000913]
[1722285306399,1.29004288,67376.0,67375.0,0.000913]
[1722285306598,1.35645964,67376.0,67375.0,0.000913]
[1722285307321,0.66208095,67376.0,67375.0,0.000913]
[1722285307557,0.91464349,67376.0,67375.0,0.000913]
[1722285308540,0.9144208,67376.0,67375.0,0.000913]
[1722285309725,0.89113424,67376.0,67375.0,0.000913]
[1722285309923,1.17823363,67376.0,67375.0,0.000913]
[1722285310351,1.47507463,67376.0,67375.0,0.000913]
[1722285310937,1.51936925,67376.0,67375.0,0.000913]
[1722285311148,1.47507463,67376.0,67375.0,0.000913]
[1722285311355,1.17823363,67376.0,67375.0,0.000913]
[1722285311957,1.10288812,67376.0,67375.0,0.000913]
[1722285312158,1.2223226,67376.0,67375.0,0.000913]
[1722285312370,1.22232629,67376.0,67375.0,0.000913]
[1722285312768,1.1780311,67376.0,67375.0,0.000913]
[1722285313210,1.49815784,67376.0,67375.0,0.000913]
[1722285313564,1.20131684,67376.0,67375.0,0.000913]
[1722285314011,1.49815784,67376.0,67375.0,0.000913]
[1722285314322,1.51916729,67376.0,67375.0,0.000913]
[1722285314451,1.22232629,67376.0,67375.0,0.000913]
[1722285314655,1.51916729,67376.0,67375.0,0.000913]
[1722285315173,1.0792269,67376.0,67375.0,0.000913]
[1722285315574,0.93507557,67376.0,67375.0,0.000913]
[1722285316229,0.89075464,67376.0,67375.0,0.000913]
[1722285316454,0.95725236,67376.0,67375.0,0.000913]
[1722285316671,0.95725447,67376.0,67375.0,0.000913]
[1722285316997,0.21515247,67376.0,67375.0,0.164813]
[1722285317164,0.013,67376.0,67375.0,0.138513]
[1722285317304,0.03628488,67376.0,67375.0,0.138513]
[1722285319007,0.03628488,67376.0,67375.0,0.078313]
[1722285319231,0.18470488,67376.0,67375.0,0.000913]
[1722285319928,0.03628488,67376.0,67375.0,0.000913]
[1722285320155,0.03628488,67376.0,67375.0,0.065513]
[1722285322491,0.16142,67376.0,67375.0,0.000913]
[1722285322848,0.20122199,67376.0,67375.0,0.000913]
[1722285323073,0.24558092,67376.0,67375.0,0.000913]
[1722285323276,0.20122199,67376.0,67375.0,0.000913]
[1722285324054,0.05280199,67376.0,67375.0,0.000913]
[1722285324269,0.013,67376.0,67375.0,0.000913]
[1722285325925,0.03628366,67376.0,67375.0,0.000913]
[1722285326574,0.03628366,67376.0,67375.0,0.141313]
[1722285327296,0.013,67376.0,67375.0,0.141313]
[1722285329258,0.013,67376.0,67375.0,0.289736]
[1722285329595,0.013,67376.0,67375.0,0.586582]
[1722285330450,0.0362822,67376.0,67375.0,0.586582]
[1722285330824,0.013,67376.0,67375.0,0.289736]
[1722285331028,0.013,67376.0,67375.0,0.141313]
[1722285331246,0.011,67376.0,67375.0,0.000913]
[1722285331469,0.011,67376.0,67375.0,0.010913]
[1722285332041,0.01803011,67376.0,67375.0,0.010913]
[1722285332323,0.011,67376.0,67375.0,0.010913]
[1722285332453,0.01803011,67376.0,67375.0,0.010913]
[1722285333007,0.00703011,67376.0,67375.0,0.010913]
[1722285333166,0.00703011,67376.0,67375.0,0.012913]
[1722285333367,0.00084,67377.0,67375.0,0.012913]
[1722285333569,0.00703011,67376.0,67375.0,0.012913]
[1722285334317,0.02412251,67377.0,67375.0,0.002913]
[1722285334616,0.02412251,67377.0,67375.0,0.011913]
[1722285334776,0.00703011,67376.0,67375.0,0.011913]
[1722285335112,0.00703011,67376.0,67375.0,0.002913]
[1722285335313,0.00703011,67376.0,67375.0,0.010913]
[1722285335517,0.00703011,67376.0,67375.0,0.000913]
[1722285335774,0.00703011,67376.0,67375.0,0.009913]
[1722285336119,0.00703011,67376.0,67375.0,0.000913]
[1722285336317,0.00703011,67376.0,67375.0,0.010913]
[1722285337767,0.00703011,67376.0,67375.0,0.000913]
[1722285337968,0.00703011,67376.0,67375.0,0.005913]
[1722285338173,0.00703011,67376.0,67375.0,0.000913]
[1722285338471,0.00703011,67376.0,67375.0,0.003913]
[1722285338798,0.00703011,67376.0,67375.0,0.001913]
[1722285339149,0.00703011,67376.0,67375.0,0.000913]
[1722285339547,0.01203011,67376.0,67375.0,0.000913]
[1722285339775,0.03531314,67376.0,67375.0,0.000913]
[1722285339967,0.01203011,67376.0,67375.0,0.000913]
[1722285341948,0.01203011,67376.0,67375.0,0.003913]
[1722285342793,0.03531319,67376.0,67375.0,0.003913]
[1722285343127,0.01203011,67376.0,67375.0,0.003913]
[1722285346216,0.02828299,67376.0,67375.0,0.003913]
[1722285346437,0.03443433,67376.0,67375.0,0.003913]
[1722285346860,0.03443433,67376.0,67375.0,0.000913]
[1722285347075,0.03443433,67376.0,67375.0,0.004913]
[1722285347541,0.03443433,67376.0,67375.0,0.083713]
[1722285347652,0.03443433,67376.0,67375.0,0.148713]
[1722285348076,0.02828299,67376.0,67375.0,0.445559]
[1722285348284,0.02828299,67376.0,67375.0,0.7096868]
[1722285348453,0.02828299,67376.0,67375.0,0.593982]
[1722285348658,0.02828299,67376.0,67375.0,0.708951]
[1722285349096,0.02828299,67376.0,67375.0,0.412105]
[1722285351764,0.02828299,67376.0,67375.0,0.297136]
[1722285351965,0.02828299,67376.0,67375.0,0.41184677]
[1722285352734,0.02328299,67376.0,67375.0,0.41184677]
[1722285353004,0.02728299,67376.0,67375.0,0.41184677]
[1722285353213,0.02728299,67376.0,67375.0,1.14863816]
[1722285353613,0.004,67376.0,67375.0,1.14863816]
[1722285353763,0.004,67376.0,67375.0,1.45548416]
[1722285353946,0.00084,67377.0,67376.0,0.774102]
[1722285354147,0.00084,67377.0,67376.0,1.73055219]
[1722285354353,0.00084,67377.0,67376.0,1.7973028]
[1722285354557,0.00084,67377.0,67376.0,2.09486963]
[1722285354768,0.00084,67377.0,67376.0,2.54635364]
[1722285354962,0.00084,67377.0,67376.0,2.56859342]
[1722285355165,0.00837,67382.0,67381.0,0.372559]
[1722285355371,0.00837,67407.0,67387.0,0.577189]
[1722285355600,0.0015542,67400.0,67388.0,0.649132]
[1722285355799,0.00837,67407.0,67404.0,0.0624]
[1722285356046,0.00837,67407.0,67406.0,0.908072]
[1722285356251,0.00837,67407.0,67406.0,1.46351155]
[1722285356589,0.00837,67407.0,67406.0,1.34788039]
[1722285356795,0.00837,67407.0,67406.0,1.46308409]
[1722285356988,0.00837,67407.0,67406.0,1.16637509]
[1722285357192,0.03164138,67407.0,67406.0,0.78316609]
[1722285357594,0.03164138,67407.0,67406.0,0.66796239]
[1722285358063,0.00837,67407.0,67406.0,0.66796239]
[1722285358288,0.00837,67407.0,67406.0,0.68196239]
[1722285358881,0.00837,67407.0,67406.0,1.08867139]
[1722285359439,0.00837,67407.0,67406.0,1.07467139]
[1722285359803,0.00837,67407.0,67406.0,1.08867139]
[1722285360057,0.00837,67407.0,67406.0,1.07467139]
[1722285360450,0.00837,67407.0,67406.0,1.17407139]
[1722285360626,0.00837,67407.0,67406.0,1.16007139]
[1722285361006,0.00837,67407.0,67406.0,1.17407139]
[1722285361263,0.03164065,67407.0,67406.0,1.16007139]
[1722285361462,0.00837,67407.0,67406.0,1.16007139]
[1722285362593,0.00837,67407.0,67406.0,1.20487433]
[1722285363431,0.00837,67407.0,67406.0,1.18287433]
[1722285364133,0.00937,67407.0,67406.0,1.18487433]
[1722285364769,0.03264065,67407.0,67406.0,1.18487433]
[1722285364968,0.03264065,67407.0,67406.0,0.88816533]
[1722285365177,0.00937,67407.0,67406.0,0.59145633]
[1722285365369,0.00837,67407.0,67406.0,1.18287433]
[1722285365777,0.00937,67407.0,67406.0,1.18487433]
[1722285366333,0.00837,67407.0,67406.0,1.18287433]
[1722285366535,0.00837,67407.0,67406.0,1.20287433]
[1722285366692,0.00937,67407.0,67406.0,1.46758333]
[1722285366895,0.00937,67407.0,67406.0,1.49358333]
[1722285367092,0.00837,67407.0,67406.0,1.47758333]
[1722285367314,0.00837,67407.0,67406.0,1.48958333]
[1722285367635,0.00937,67407.0,67406.0,1.50358333]
[1722285367940,0.00937,67407.0,67406.0,1.48158333]
[1722285368177,0.00937,67407.0,67406.0,1.18487433]
[1722285368378,0.03264062,67407.0,67406.0,1.17087433]